Cogmind - Beta 16.1 @@@ ROGUE MODE // 2026.02.22 @ 13:41:20 Player: Calliope Result: Destroyed by WS-7WB(R) with Subdweller Laser Performance ------------- Evolutions (0) 0 Regions Visited (2) 400 Robots Destroyed (16) 80 Value Destroyed (383) 383 Prototype IDs (1) 20 Alien Tech Used (0) 0 Bonus (0) 0 TOTAL SCORE: 883 Bonus ------- None Cogmind --------- Core Integrity 0/250 Matter 277/300 Energy 21/100 System Corruption 2% Temperature Cool (6) Movement Walking (130) Location -10/Subcaves Parts ------- > --- POWER (1) -------- (None) > --- PROPULSION (2) --- Cargo Legs > --- UTILITY (2+1) ---- Large Storage Unit Visual Processing Unit (+) Signal Interpreter > --- WEAPON (2) ------- Riot Gun Medium Laser > --- INVENTORY (15) --- Light Treads Light Treads Improved Treads Improved Treads Improved Treads Improved Treads Makeshift Leg Wheel Compact Wheel Disposable Heat Sink Assault Rifle Scrap Shield Fragment (47) Peak State ------------ > --- POWER ------------ Subdweller Power Source > --- PROPULSION ------- Cargo Legs > --- UTILITY ---------- Large Storage Unit Visual Processing Unit Signal Interpreter Seismic Detector > --- WEAPON ----------- EM Shotgun Medium Laser > --- INVENTORY -------- Light Ion Engine Light Treads Light Treads Improved Treads Improved Treads Improved Treads Improved Treads Wheel Compact Wheel Disposable Heat Sink Visual Processing Unit Assault Rifle Scrap Shield Fragment [Rating: 28] Favorites ----------- Power Ion Engine Engine Ion Engine Propulsion Compact Wheel Treads Light Treads Leg Cargo Legs Wheel Compact Wheel Utility Large Storage Unit Device Seismic Detector Storage Large Storage Unit Processor Signal Interpreter Weapon EM Shotgun Energy Gun EM Shotgun Ballistic Gun Assault Rifle Build | -11 -10 -10 ------- Run | Yrd Mat Sub Slots Evolved . | . . . Power . | . . . Propulsion . | . . . Utility . | . . . Weapon . | . . . Parts Attached 21 | 8 5 8 Power 3 | 1 . 2 Engine 3 | 1 . 2 Core . | . . . Reactor . | . . . Propulsion 6 | 2 1 3 Treads 2 | . . 2 Leg 1 | . . 1 Wheel 3 | 2 1 . Hover . | . . . Flight . | . . . Utility 6 | 2 2 2 Device 2 | 1 1 . Storage 2 | 1 1 . Processor 2 | . . 2 Hackware . | . . . Protection . | . . . Artifact . | . . . Weapon 6 | 3 2 1 Energy Gun 5 | 2 2 1 Energy Cannon . | . . . Ballistic Gun 1 | 1 . . Ballistic Cannon . | . . . Launcher . | . . . Special Weapon . | . . . Impact Weapon . | . . . Slashing Weapon . | . . . Piercing Weapon . | . . . Special Melee Weapon . | . . . Unidentified Prototypes 1 | . . 1 Parts Lost 6 | . . 6 Power 2 | . . 2 Propulsion 1 | . . 1 Utility 1 | . . 1 Weapon 2 | . . 2 Highest Loss Streak 4 | . . 4 To Critical Strikes . | . . . Average Backups 11 | 3 13 10 Power . | . 1 . Propulsion 7 | 2 7 8 Utility 2 | . 3 1 Weapon 1 | . 1 . Tool/Special . | . . . Unused Backups 10 | . 2 8 Power . | . . . Propulsion 8 | . 2 6 Utility 2 | . . 2 Weapon . | . . . Tool/Special . | . . . Average Slot Usage (%) 89 | . 99 81 Engine 9 | . 14 5 Leg 5 | . . 10 Wheel 13 | . 28 2 Device 6 | . 14 1 Storage 13 | . 14 12 Processor 12 | . . 22 Energy Gun 24 | . 26 23 Ballistic Gun 1 | . 1 1 Peak Build Rating 28 | 7 11 28 Average Rating 17 | 4 10 23 On Entrance 6 | . 7 11 Avg Prop Armor Cover (%) . | . . . Naked Turns . | . . . Heaviest Build 32 | 15 32 32 Greatest Support 55 | 32 32 55 Greatest Overweight (x) 2 | . 1 2 Average Overweight (x) . | . . . Largest Inventory Capacity 15 | 8 15 15 Average Capacity 14 | 7 14 15 Most Carried 15 | 6 15 15 Average Carried 12 | 4 14 11 Final Capacity 15 | 8 15 15 Final Carried 15 | 6 15 12 Class Distribution -------------------- 100% | Mutant Dominant Class ---------------- Mutant | -10/Materials Mutant | -10/Subcaves Resources | -11 -10 -10 ----------- Run | Yrd Mat Sub Matter Collected 473 | 232 101 140 Remotely . | . . . Salvage Created 532 | 19 208 305 Parts 24 | 1 11 12 Haulers Intercepted . | . . . Recyclers Shooed . | . . . Parts Field Recycled . | . . . Retrieved Matter . | . . . Parts Self-Destructed 14 | . . 14 Prevented . | . . . Parts Restored . | . . . Kills | -11 -10 -10 ------- Run | Yrd Mat Sub Combat Hostiles Destroyed 12 | . 6 6 Guns 12 | . 6 6 Classes Destroyed 6 | 1 4 1 Builder 1 | . 1 . Tunneler 2 | 1 1 . Watcher 1 | . 1 . Swarmer 4 | . 4 . Grunt 2 | . 2 . Subdweller 6 | . . 6 Best Kill Streak 3 | 1 3 3 Combat Bots Only 3 | . 3 3 Max Kills in Single Turn 2 | 1 2 1 Gunslinging . | . . . Exploded . | . . . Melee . | . . . Uniques/NPCs Destroyed . | . . . Combat | -11 -10 -10 -------- Run | Yrd Mat Sub Hostile Shots Fired 61 | . 12 49 Missed 14 | . 4 10 Hits 47 | . 8 39 Projectile 47 | . 8 39 Critical Strikes 1 | . . 1 Damage Taken 952 | . 82 870 Core 258 | . 42 216 Absorbed by Shields . | . . . Core Remaining (%) 100 | 100 . . Volleys Fired 46 | 1 14 31 Largest 2 | 2 2 2 Hottest 100 | 70 90 100 Shots Fired 92 | 2 30 60 Gun 92 | 2 30 60 Cannon . | . . . Launcher . | . . . Special . | . . . Kinetic 11 | 1 . 10 Thermal 29 | 1 . 28 Explosive . | . . . Electromagnetic 52 | . 30 22 Robot Hit Streak 25 | 1 10 25 Robot Miss Streak 3 | . 3 2 Penetration Max . | . . . Secondary Targets 2 | . 1 1 Max Gunslinging Chain 1 | . 1 1 Shots Hit Robots 78 | 1 24 53 Core Hits 34 | 1 12 21 Critical Kills . | . . . Critical Parts Destroyed . | . . . Critical Strikes 5 | . . 5 Burn 4 | . . 4 Destroy 1 | . . 1 Melee Attacks . | . . . Impact . | . . . Slashing . | . . . Piercing . | . . . Sneak Attacks . | . . . Combat Hostiles . | . . . Follow-up Attacks . | . . . Damage Inflicted 1009 | 12 316 681 Guns 1009 | 12 316 681 Cannons . | . . . Explosions . | . . . Melee . | . . . Ramming . | . . . Kinetic 106 | . . 106 Thermal 276 | 12 . 264 Explosive . | . . . Electromagnetic 627 | . 316 311 Impact . | . . . Slashing . | . . . Piercing . | . . . Highest Corruption 2 | . 2 2 Average Corruption 2 | . 2 2 Corruption Purged . | . . . Corruption Blocked . | . . . Effects 25 | . 7 18 Message Errors 10 | . 2 8 Matter Fused 3 | . . 3 Heat Flow Errors 1 | . . 1 Energy Discharges 5 | . 2 3 Data Loss (minor) 4 | . 1 3 Misfires 2 | . 2 . Overload Shots . | . . . Overflow Damage . | . . . Projectiles . | . . . Explosions . | . . . Melee . | . . . Knockbacks . | . . . Impact . | . . . Kinetic . | . . . Secondary . | . . . Self-Inflicted Damage . | . . . Shots . | . . . Rammed . | . . . Targets Rammed . | . . . Kicked . | . . . Crushed . | . . . Highest Temperature 212 | 9 138 212 Average Temperature 50 | 6 46 126 Received Heat Transfer 252 | . 18 234 Siege Activations . | . . . Martial Activations . | . . . Shielding Activations . | . . . Robots Disrupted . | . . . Combat Hostiles . | . . . Robots Corrupted . | . . . Combat Hostiles . | . . . Parts Fried 1 | . . 1 Impact Corruptions . | . . . Robots Melted . | . . . Combat Hostiles . | . . . Parts Melted 2 | . . 2 Heat Transferred 1110 | 37 . 1073 Parts Sabotaged . | . . . Parts Stolen . | . . . Parts Stripped . | . . . Power Chain Reactions . | . . . Alert | -11 -10 -10 ------- Run | Yrd Mat Sub Maximum Alert Level . | . . . Low Security (%) 100 | 100 100 . Level 1 . | . . . Level 2 . | . . . Level 3 . | . . . Level 4 . | . . . Level 5 . | . . . High Security . | . . . Max Security . | . . . Peak Influence 62 | 5 62 . Initial 3 | . 3 . Average 7 | . 8 . Influence Increases 196 | 5 191 . Destroy 0b10 Robot/C 120 | . 120 . Destroy 0b10 Robot/NC 20 | 5 15 . Destroy Leader 22 | . 22 . Successful Hack 19 | . 19 . Lose Combat Pursuer 15 | . 15 . Influence Decreases 196 | . 193 3 Entered New Map 5 | . 2 3 Time Decay 159 | . 159 . Purge Threat 32 | . 32 . Squads Dispatched 4 | . 4 . Investigation 2 | . 2 . Extermination . | . . . Reinforcement 2 | . 2 . Assault . | . . . Garrison . | . . . Intercept . | . . . Searches Triggered . | . . . Construction Impeded . | . . . Haulers Reinforced . | . . . Active Scanning Responses . | . . . Cargo Convoy Interrupts . | . . . Stealth | -11 -10 -10 --------- Run | Yrd Mat Sub Distress Signals 3 | . 3 . Communications Jammed . | . . . Distress Signals . | . . . Times Spotted 24 | . 17 7 Peak Tracking Total 5 | . 5 3 Tactical Retreats 1 | . 1 . Traps | -11 -10 -10 ------- Run | Yrd Mat Sub Traps Triggered 3 | . 3 . Indirectly . | . . . Trap Hack Attempts . | . . . Triggered . | . . . Disarmed . | . . . Reprogrammed . | . . . Reused . | . . . Traps Extracted . | . . . Installed . | . . . Triggered . | . . . Machines | -11 -10 -10 ---------- Run | Yrd Mat Sub Machines Disabled . | . . . Max in Single Turn . | . . . Machines Repaired . | . . . Machines Dismantled . | . . . Machines Sabotaged . | . . . Overloaded Fab Kills . | . . . Hacking | -11 -10 -10 --------- Run | Yrd Mat Sub Machines Accessed 6 | . 6 . Terminals 5 | . 5 . Fabricators . | . . . Repair Stations . | . . . Recycling Units 1 | . 1 . Scanalyzers . | . . . Garrison Access . | . . . Total Hacks 19 | . 19 . Successful 7 | . 7 . Failed 12 | . 12 . Catastrophic 1 | . 1 . Database Lockouts . | . . . Manual . | . . . Terminals 15 | . 15 . Fabricators . | . . . Repair Stations . | . . . Recycling Units 4 | . 4 . Scanalyzers . | . . . Garrison Access . | . . . Terminal Hacks 5 | . 5 . Unreport Threat 2 | . 2 . Dispatch Records 1 | . 1 . Patrol Status 1 | . 1 . Zone Layout 1 | . 1 . Fabricator Hacks . | . . . Repair Station Hacks . | . . . Recycling Unit Hacks 2 | . 2 . Recycle Component 1 | . 1 . Report Inventory 1 | . 1 . Scanalyzer . | . . . Garrison Access Hacks . | . . . Unauthorized Hacks . | . . . Terminals . | . . . Fabricators . | . . . Repair Stations . | . . . Recycling Units . | . . . Scanalyzers . | . . . Garrison Access . | . . . Data Cores Recovered . | . . . Used . | . . . Hacking Detections 6 | . 6 . Full Trace Events 1 | . 1 . Feedback Events . | . . . Feedback Blocked . | . . . Robot Schematics Acquired . | . . . Robots Built . | . . . Authchips . | . . . Time . | . . . Total Robot Build Rating . | . . . Part Schematics Acquired . | . . . Parts Built . | . . . Authchips . | . . . Time . | . . . Total Part Build Rating . | . . . Part Studies Acquired . | . . . Parts Repaired . | . . . Time . | . . . Parts Recycled 1 | . 1 . Recycled Matter . | . . . Retrieved Matter . | . . . Retrieved Components . | . . . Parts Scanalyzed . | . . . Part Schematics Acquired . | . . . Parts Damaged . | . . . Bothacking | -11 -10 -10 ------------ Run | Yrd Mat Sub Used RIF Installer . | . . . Robots Hacked . | . . . Non-combat . | . . . Combat . | . . . Robot Hacks Applied . | . . . Relay Couplers Released . | . . . Fabnet Peak Effective % . | . . . Robots Rewired . | . . . Allies Hacked . | . . . Hacks Repelled . | . . . Allies | -11 -10 -10 -------- Run | Yrd Mat Sub Total Allies . | . . . Largest Group . | . . . Highest-Rated Group . | . . . Highest-Rated Ally . | . . . Total Orders . | . . . Ally Attacks . | . . . Total Damage . | . . . Kills . | . . . Allies Corrupted . | . . . Allies Melted . | . . . Intel | -11 -10 -10 ------- Run | Yrd Mat Sub Active Infowar (turns) 2737 | 1 1244 1492 Optics 1389 | . . 1389 Seismic 1361 | 1 1244 116 Robot Analysis Total . | . . . Derelict Logs Recovered 2 | . . 2 Drone Launches . | . . . Drone Recoveries . | . . . Exploration | -11 -10 -10 ------------- Run | Yrd Mat Sub Turns Passed 2834 | 59 1244 1531 Spaces Moved 1978 | 40 918 1020 Core 2 | 2 . . Treads 6 | . . 6 Legs 918 | . . 918 Wheels 1052 | 38 918 96 Hover . | . . . Flight . | . . . Fastest Speed 50 | 50 100 105 Average Speed 114 | 97 101 127 Slowest Speed 160 | 100 105 160 Overloaded Moves . | . . . Propulsion Burnouts . | . . . Robots Hopped . | . . . Potential Cave-ins . | . . . Cave-ins Triggered . | . . . Exploration Rate (%) 49 | 4 96 47 Regions Visited 2 Branch Regions 1 Pre-discovered Areas 1 | . . 1 Known Exits Taken . | . . . Unknown Exits Taken 2 | 1 1 . Scrap Searched . | . . . Spaces Dug . | . . . Terrain Destroyed . | . . . Melee . | . . . Projectile . | . . . AOE . | . . . Terrain Rammed . | . . . Walls Destroyed . | . . . Machines Disabled . | . . . Actions | -11 -10 -10 --------- Run | Yrd Mat Sub Total 2448 | 54 1204 1190 Wait 368 | . 253 115 Move 1976 | 39 917 1020 Hop . | . . . Pick Up 18 | 6 9 3 Fast Attach 12 | 7 2 3 Attach 8 | . . 8 Detach 5 | . 2 3 Swap 5 | 1 3 1 Drop 8 | . 4 4 Fire 46 | 1 14 31 Melee . | . . . Ram . | . . . Kick . | . . . Crush . | . . . Escape Stasis . | . . . Rewire 2 | . . 2 Trap . | . . . Miscellaneous . | . . . Route ------- -11/Scrapyard -10/Materials (discovered 6 exits: [*Mat x3] / [*Min x2] / [*Sub]) -10/Subcaves History --------- Turn | Location | Event 16 | -11/Scrapyard | Discovered new exit (range 16) 60 | -11/Scrapyard | Entered Materials 112 | -10/Materials | Discovered new exit (range 5) 312 | -10/Materials | Build established: Mutant 520 | -10/Materials | Discovered new exit (range 16) 560 | -10/Materials | Derelicts attacked the area 601 | -10/Materials | Discovered new exit (range 16) 921 | -10/Materials | Discovered new exit (range 16) 930 | -10/Materials | Discovered new exit (range 15) 1289 | -10/Materials | Discovered new exit (range 8) 1304 | -10/Materials | Entered Subcaves 1391 | -10/Subcaves | Learned location of 1 exit from Materials 1404 | -10/Subcaves | A Subdweller sparked back to life 1404 | -10/Subcaves | A Subdweller sparked back to life 1404 | -10/Subcaves | A Subdweller sparked back to life 1442 | -10/Subcaves | Found Prototype Leg 1442 | -10/Subcaves | Identified Cargo Legs 1444 | -10/Subcaves | Attached Cargo Legs, gained temporary slots: Utility x2 1447 | -10/Subcaves | Lost 4 parts (1p1n1u1w) 1511 | -10/Subcaves | Shifting Twisted Machinery released Sub. Monowheel 1560 | -10/Subcaves | Core integrity fell below 50% 1691 | -10/Subcaves | Learned location of Zion (-6) 1978 | -10/Subcaves | Core integrity fell below 20% 2828 | -10/Subcaves | Disturbed a concealed Subdweller 2835 | -10/Subcaves | Destroyed by WS-7WB(R) with Subdweller Laser Last Messages --------------- 02083_ V%N 56 K<,ZM7WN0UA=QZW 02210_ Acquired Riot Gun. 02236_ Acquired Mak. Leg. 02298_ System corrupted: Component data lost. 02431_ :#LVVWJH YO1YBHFJX1G#: HA4W2X,ITP6ELFBPA2 02579_ System corrupted: Matter fused (-7). 02626_ ZA-1F0(u) deconstructs Twisted Machinery. 02684_ System corrupted: Component data lost. 02726_ TP%UHAM2FPO#HKYW=PKD>UMKUSY 1YP 02776_ System corrupted: Heat flow error (+254). 02779_ Subatomizers dissect the Corrupted Sub. Power Source. 02793_ ZA-1F0(u) builds Twisted Machinery. 02828_ WS-7WB(R) angrily emerges from the Twisted Machinery. 02833_ WS-7WB(R) affixes Scrap Shield Fragment to Scrap Shield. Map ----- +----------------------------------------------------+ | ^ #????# ##?##"" " ##??# ### #??????? | | ##????# ###???#" ##??## ## ## #??????? | | #????###?????# ##### #### #??????? | | #????????##??# #####??# #??????? | | ??##????## #?# ##????## ##??????? | | ###"#????# ## #???## ## #??????? | | ## ##????# #??## ####??????? | | ""!"" #???## ##### ## ##????????? | | &% & #???# ### ## #### ###??????? | | "*% ###?# #### #####?## ##?????? | | !& ! ####### ### # # #??## #?????? | | "!& ## # # ## ##?## #?????? | | ## ### #?????? | | ##### #### # # ### ##?????? | | #???## # ########??## ### ## #?????? | | ###????#########??????????## #?# ### ##?????? | | ???????????????????????????###?# ##?# #?????? | | ???????????????????????????????# #### #?????? | | ????????????????????????????#### ## #?????? | | ????????????????????????????# ## #?????? | | ??????????????????????????### #?????? | | ??????????????????????????# ##?????? | | ?????????????????????????### ## ##??????? | | ????????????????????????##<#< ### #???????? | | ??????????????????????# # #?## ###???????? | | ??????????????????????#